bitfinex-derivatives/quotes_ETHF0:USTF0_20240924
["timestamp","ask_amount","ask_price","bid_price","bid_amount"]
[1727167503793,1.19826,2660.7,2660.4,3.08709148]
[1727167504196,0.8224,2660.7,2660.4,3.08709148]
[1727167505004,0.37588,2660.6,2660.4,2.71120148]
[1727167505207,0.37588,2660.5,2660.4,1.84330148]
[1727167505399,0.37588,2660.5,2660.2,1.35192148]
[1727167505400,3.58369,2660.5,2660.2,1.35192148]
[1727167505603,0.3759,2660.4,2660.2,0.97600148]
[1727167506000,0.3759,2660.4,2660.1,3.04883148]
[1727167506401,0.3759,2660.5,2660.1,3.04883148]
[1727167506600,0.3759,2660.4,2660.1,3.04883148]
[1727167506800,0.37591,2660.4,2660.1,2.67290148]
[1727167507006,1.84873604,2660.6,2660.1,4.13763691]
[1727167507208,1.84873604,2660.6,2660.2,2.59999635]
[1727167507506,0.37589,2660.5,2660.2,1.35192148]
[1727167508297,1.84872604,2660.6,2660.3,0.3759]
[1727167508601,2.67112604,2660.7,2660.4,0.3759]
[1727167508801,1.19827,2660.7,2660.4,0.3759]
[1727167509104,0.37587,2660.6,2660.4,1.35190148]
[1727167510397,0.8224,2660.7,2660.5,0.37588]
[1727167510597,0.8224,2660.7,2660.6,0.9092]
[1727167510904,1.19825,2660.7,2660.6,0.8692]
[1727167512010,0.37588,2660.5,2660.4,0.97600148]
[1727167512198,0.37588,2660.5,2660.3,0.97600148]
[1727167512199,0.3759,2660.4,2660.3,0.97600148]
[1727167512399,1.243,2660.4,2660.2,0.97600148]
[1727167512596,1.243,2660.4,2660.1,2.34173543]
[1727167512597,0.37593,2660.2,2660.1,2.34173543]
[1727167512799,0.37593,2660.2,2659.9,0.97554549]
[1727167513105,0.37595,2660.0,2659.9,0.97554549]
[1727167513302,0.37595,2660.0,2659.7,2.14519]
[1727167513605,1.47806832,2659.9,2659.7,2.14519]
[1727167514000,1.85401832,2660.0,2659.7,2.14519]
[1727167514196,1.47806832,2660.0,2659.7,2.14519]
[1727167514504,1.85402832,2660.0,2659.8,0.37598]
[1727167514806,1.47806832,2659.9,2659.7,0.877]
[1727167515209,1.85402832,2660.0,2659.7,1.25299]
[1727167515508,1.47806832,2659.9,2659.7,1.25299]
[1727167516107,1.85402832,2660.0,2659.8,0.37598]
[1727167516302,1.85401832,2660.0,2659.7,3.89299]
[1727167516609,1.85401832,2660.0,2659.7,3.517]
[1727167516810,1.85401832,2660.0,2659.7,3.89298]
[1727167517405,1.85401832,2660.0,2659.7,3.89299]
[1727167517608,1.47806832,2659.9,2659.7,3.89299]
[1727167518018,1.85403832,2659.9,2659.7,3.89299]
[1727167518308,1.47806832,2659.9,2659.7,3.89299]
[1727167518507,1.85403832,2659.9,2659.7,3.89299]
[1727167519503,1.47806832,2659.9,2659.7,3.517]
[1727167519704,1.85403832,2659.9,2659.7,3.517]
[1727167519900,1.47806832,2659.9,2659.8,0.37598]
[1727167520308,1.79586,2660.1,2659.8,0.97554549]
[1727167520506,0.37598,2659.9,2659.7,2.22853549]
[1727167520921,0.856,2660.1,2659.7,1.85254549]
[1727167521219,0.37597,2660.0,2659.8,0.37598]
[1727167521408,0.37595,2660.0,2659.8,1.35152549]
[1727167521904,1.23195,2660.1,2659.8,1.35152549]
[1727167522214,0.37596,2660.0,2659.8,1.35152549]
[1727167522416,1.23194,2660.1,2659.9,0.37597]
[1727167522612,0.37596,2660.0,2659.8,1.35152549]
[1727167522806,1.23195,2660.1,2659.8,1.35152549]
[1727167523006,0.37596,2660.0,2659.8,1.35152549]
[1727167523612,0.856,2660.1,2659.8,0.97554549]
[1727167523909,0.37596,2660.0,2659.8,1.35151549]
[1727167524113,0.856,2660.1,2659.8,0.97554549]
[1727167524316,0.856,2660.1,2660.0,0.37595]
[1727167524710,0.856,2660.1,2659.9,1.81724549]
[1727167524918,0.37595,2660.0,2659.9,1.81724549]
[1727167525214,0.856,2660.1,2659.9,1.81724549]
[1727167525403,0.37595,2660.0,2659.9,1.81724549]
[1727167525605,0.856,2660.1,2659.9,1.81724549]
[1727167525810,0.37595,2660.0,2659.9,0.97554549]
[1727167526008,0.37595,2660.0,2659.8,0.97554549]
[1727167526207,0.37597,2659.9,2659.8,0.97554549]
[1727167527213,1.79587,2660.1,2659.7,1.85254549]
[1727167527214,0.37598,2659.8,2659.7,1.85254549]
[1727167528213,0.37598,2659.8,2659.7,3.10188711]
[1727167528417,0.37598,2659.8,2659.7,0.877]
[1727167530307,0.37598,2659.8,2659.6,0.97554549]
[1727167530308,0.93995,2659.9,2659.5,0.97554549]
[1727167530504,0.37601,2659.7,2659.5,0.97554549]
[1727167530711,1.6643,2659.8,2659.5,0.97554549]
[1727167531019,0.37601,2659.6,2659.5,0.97554549]
[1727167531218,0.37602,2659.5,2659.4,1.82174549]
[1727167531516,1.20822,2659.5,2659.4,0.8462]
[1727167532421,0.8322,2659.5,2659.1,0.97554549]
[1727167532617,2.64,2659.4,2659.0,0.97554549]
[1727167532818,5.05825832,2659.2,2658.7,1.82174549]
[1727167533027,5.05825832,2659.2,2658.7,0.8462]
[1727167533028,0.37612,2658.8,2658.7,0.8462]
[1727167533820,0.37614,2658.7,2658.6,0.46450873]
[1727167535217,1.25663,2658.8,2658.6,0.46450873]
[1727167536411,0.37614,2658.7,2658.6,0.46450873]
[1727167537416,0.37614,2658.7,2658.3,7.11709]
[1727167537729,0.37615,2658.6,2658.3,7.11709]
[1727167538112,0.37615,2658.7,2658.3,7.11709]
[1727167538314,0.37615,2658.6,2658.3,6.7409]
[1727167538510,0.37615,2658.7,2658.3,7.11709]
[1727167538823,0.8805,2658.8,2658.3,6.7409]
[1727167539022,3.2078,2659.2,2658.7,2.64]
[1727167539222,5.56006832,2659.5,2659.0,0.37609]
[1727167539223,0.8876,2659.4,2659.0,0.37609]
[1727167539417,1.26365,2659.4,2659.0,0.37609]
[1727167539813,0.37606,2659.3,2658.9,3.01611]
[1727167540214,0.37607,2659.2,2658.8,2.6512]
[1727167540717,0.8876,2659.4,2658.9,0.3761]
[1727167540915,0.37605,2659.3,2658.9,0.3761]
[1727167541529,0.37606,2659.3,2658.9,0.3761]
[1727167541719,0.37607,2659.2,2658.8,3.02731]
[1727167542121,0.37609,2659.1,2658.8,1.778]
[1727167542323,0.37608,2659.2,2658.8,2.15412]
[1727167542518,0.37609,2659.1,2658.8,1.778]
[1727167543028,0.37608,2659.1,2658.8,2.15412]
[1727167543222,7.90885,2659.0,2658.4,0.37617]
[1727167543414,0.37613,2658.8,2658.4,1.7079]
[1727167543618,0.9023,2658.9,2658.4,1.7079]
[1727167543619,1.27842,2658.9,2658.4,1.7079]
[1727167543925,0.37617,2658.5,2658.4,0.8625]
[1727167544418,0.37616,2658.6,2658.4,0.8625]
[1727167544723,0.37615,2658.7,2658.4,0.8625]
[1727167544917,0.37615,2658.6,2658.4,0.8625]
[1727167545525,0.37614,2658.7,2658.4,1.23868]
[1727167545917,1.84261,2658.9,2658.4,0.8625]
[1727167546123,0.37615,2658.6,2658.4,0.8625]
[1727167546323,0.37615,2658.7,2658.4,0.8625]
[1727167546523,1.84261,2658.9,2658.4,0.8625]
[1727167547531,1.84261,2658.9,2658.4,1.23868]
[1727167547532,0.37613,2658.8,2658.4,1.23868]
[1727167547731,0.9023,2658.9,2658.4,0.8625]
[1727167547928,0.37614,2658.7,2658.4,0.8625]
[1727167548234,0.37616,2658.6,2658.4,0.8625]
[1727167548626,0.37614,2658.7,2658.4,0.8625]
[1727167549321,0.37617,2658.5,2658.4,0.8625]
[1727167550328,1.24767,2658.5,2658.4,0.8625]
[1727167550522,7.64927,2658.5,2658.0,0.827]
[1727167550732,0.37621,2658.2,2658.0,0.8308]
[1727167550932,1.7023,2658.4,2658.0,0.8308]
[1727167551121,0.37622,2658.2,2658.0,0.8308]
[1727167551322,1.7023,2658.4,2658.0,0.8308]
[1727167551528,0.3762,2658.3,2658.0,0.8308]
[1727167552238,1.7023,2658.4,2658.0,0.8308]
[1727167552435,2.07849,2658.4,2658.0,0.8308]
[1727167552621,1.7023,2658.4,2658.0,1.20703]
[1727167553026,1.7023,2658.4,2658.1,0.37622]
[1727167553327,3.2078,2658.6,2658.3,0.37618]
[1727167553520,3.04733,2658.8,2658.4,1.7027]
[1727167553521,2.6712,2658.8,2658.4,1.7027]
[1727167553724,0.37614,2658.7,2658.4,1.7027]
[1727167553924,0.37616,2658.6,2658.4,1.7027]
[1727167554528,5.3112,2658.8,2658.4,1.7027]
[1727167554724,5.3112,2658.8,2658.4,0.8308]
[1727167554725,0.37617,2658.5,2658.4,0.8308]
[1727167555134,3.7616,2658.5,2657.9,3.58404]
[1727167555337,1.24329,2658.4,2658.0,0.8619]
[1727167555536,0.8951,2658.3,2658.0,1.23813]
[1727167555828,0.8951,2658.3,2658.1,0.37622]
[1727167556035,0.8951,2658.3,2658.0,0.8619]
[1727167556437,0.8951,2658.3,2658.1,0.37622]
[1727167556942,0.37618,2658.5,2658.2,0.8771]
[1727167557229,5.8478,2658.6,2658.2,0.8771]
[1727167557635,0.37617,2658.5,2658.2,0.8771]
[1727167558538,2.70366,2658.7,2658.2,0.8771]
[1727167558736,0.37617,2658.5,2658.2,0.8771]
[1727167559237,0.37617,2658.5,2658.2,1.25331]
[1727167559628,0.37616,2658.6,2658.2,1.25331]
[1727167560838,0.37617,2658.5,2658.2,1.25331]
[1727167561035,0.37616,2658.6,2658.2,1.25331]
[1727167561234,1.7633,2658.7,2658.4,0.37617]
[1727167561543,0.8962,2658.7,2658.5,0.8605]
[1727167561929,0.8962,2658.7,2658.5,1.23666]
[1727167562129,0.8962,2658.7,2658.5,0.8605]
[1727167563827,1.27234,2658.7,2658.5,0.8605]
[1727167564028,10.5116,2658.6,2657.9,3.2078]
[1727167564234,10.5116,2658.6,2658.0,0.8685]
[1727167564235,1.27836,2658.6,2658.0,0.8685]
[1727167564632,0.8962,2658.7,2658.4,0.37617]
[1727167564833,0.8962,2658.7,2658.5,0.8685]
[1727167565131,1.27234,2658.7,2658.5,1.7603]
[1727167565535,2.17454,2658.7,2658.5,1.7603]
[1727167566742,1.7984,2658.7,2658.5,1.7603]
[1727167567040,1.7984,2658.7,2658.5,2.13646]
[1727167567538,3.2078,2659.2,2658.5,1.7603]
[1727167567741,0.3761,2659.0,2658.7,0.37613]
[1727167567937,0.3761,2659.0,2658.5,1.7603]
[1727167567938,3.2078,2658.9,2658.5,1.7603]
[1727167568138,0.37613,2658.8,2658.5,2.13647]
[1727167568337,0.37615,2658.7,2658.5,1.7603]
[1727167569742,3.2078,2658.9,2658.5,1.7603]
[1727167569945,0.37615,2658.6,2658.5,1.7603]
[1727167570144,0.8336,2658.8,2658.5,1.7603]
[1727167570344,0.8336,2658.8,2658.5,0.8685]
[1727167570345,1.26945,2658.7,2658.5,0.8685]
[1727167570535,0.37615,2658.6,2658.5,0.8685]
[1727167570736,2.11575,2658.7,2658.5,0.8685]
[1727167572032,2.11575,2658.7,2658.2,0.8718]
[1727167572033,3.01615,2658.6,2658.2,0.8718]
[1727167572238,0.37621,2658.2,2658.1,0.89]
[1727167572434,0.3762,2658.3,2658.1,0.89]
[1727167573251,0.9161,2658.3,2658.1,0.89]
[1727167574334,1.29229,2658.3,2658.1,0.89]
[1727167574740,0.9161,2658.3,2658.1,0.89]
[1727167576344,5.8478,2658.6,2658.1,0.89]
[1727167576345,3.2078,2658.6,2658.1,0.89]
[1727167576649,3.2078,2658.6,2658.2,0.3762]
[1727167576650,3.58396,2658.6,2658.2,0.3762]
[1727167577747,0.37617,2658.5,2658.1,2.24176549]
[1727167578066,0.37619,2658.4,2658.1,0.89]
[1727167578239,0.37619,2658.4,2658.1,1.86554549]
[1727167578445,0.3762,2658.3,2658.1,0.89]
[1727167578949,0.37619,2658.4,2658.1,0.89]
[1727167579248,0.3762,2658.3,2658.1,0.89]
[1727167579546,1.2435,2658.3,2658.1,0.89]
[1727167579752,0.37621,2658.2,2658.1,0.89]
[1727167579956,9.64403,2658.2,2657.7,2.77694549]
[1727167580251,0.37626,2657.8,2657.7,1.8014]
[1727167580749,0.37626,2657.9,2657.7,1.8014]
[1727167581250,3.58056,2658.1,2657.7,1.8014]
[1727167581549,0.37626,2657.9,2657.7,1.8014]
[1727167583452,0.37626,2657.8,2657.7,1.8014]
[1727167583754,0.37626,2657.9,2657.7,1.8014]
[1727167585564,0.37626,2657.8,2657.7,1.8014]
[1727167585753,3.58058,2658.1,2657.7,1.8014]
[1727167585954,4.9419,2658.2,2657.7,1.8014]
[1727167586255,3.2078,2658.8,2658.4,0.37618]
[1727167586449,3.2078,2658.8,2658.5,1.22296]
[1727167586955,3.2078,2658.8,2658.6,0.37614]
[1727167587149,3.2078,2658.8,2658.5,0.8468]
[1727167587464,3.2078,2658.8,2658.5,1.22296]
[1727167588350,3.2078,2658.8,2658.6,0.37615]
[1727167588550,3.2078,2658.8,2658.5,0.8468]
[1727167588760,3.2078,2658.8,2658.5,1.22296]
[1727167589362,3.2078,2658.8,2658.5,2.19850549]
[1727167589662,0.37611,2658.9,2658.5,2.19850549]
[1727167590259,3.2078,2659.1,2658.5,1.22296]
[1727167590260,0.3761,2659.0,2658.5,1.22296]
[1727167590665,2.74945326,2660.0,2659.5,16.60345563]
[1727167590962,3.2078,2660.8,2658.6,11.08254549]
[1727167590963,3.2078,2661.1,2660.4,0.37589]
[1727167591149,0.37583,2660.9,2660.8,2.64]
[1727167591352,3.7608,2661.0,2660.8,2.64]
[1727167591761,3.7608,2661.0,2660.8,5.8478]
[1727167593861,3.7608,2661.0,2660.8,6.22363]
[1727167594958,0.84,2661.7,2660.8,15.6062]
[1727167595157,3.7608,2661.4,2661.3,2.64]
[1727167595361,3.2078,2662.2,2661.3,2.64]
[1727167595563,3.2078,2662.2,2661.5,2.64]
[1727167595866,3.7608,2662.1,2661.6,4.27643152]
[1727167596054,3.7608,2662.1,2662.0,3.58347]
[1727167596363,0.3756,2662.6,2662.0,3.2078]
[1727167596568,0.3756,2662.6,2662.0,7.0958]
[1727167596569,3.7608,2662.3,2662.0,7.0958]
[1727167597067,3.7608,2662.3,2662.0,7.47147]
[1727167597467,3.7608,2662.3,2662.0,7.0958]
[1727167597659,3.7608,2662.3,2662.0,7.47147]
[1727167597865,3.7608,2662.3,2662.0,7.0958]
[1727167598465,5.8478,2662.8,2662.0,3.2078]
[1727167598665,3.7608,2662.1,2661.7,3.2078]
[1727167598966,3.01561,2662.5,2661.9,3.2078]
[1727167599364,3.7608,2662.0,2661.9,3.2078]
[1727167599559,3.7608,2662.0,2661.9,3.58349]
[1727167600770,3.7608,2662.0,2661.9,3.2078]
[1727167601465,3.7608,2662.0,2661.9,3.58349]
[1727167601670,3.7608,2662.0,2661.9,3.2078]
[1727167602069,3.7608,2662.0,2661.9,3.58349]
[1727167603263,3.7608,2662.0,2661.9,3.2078]
[1727167604770,3.7608,2662.0,2661.0,3.2958]
[1727167604771,0.93929,2661.7,2661.0,3.2958]
[1727167604977,3.7608,2661.5,2661.4,2.64]
[1727167605875,3.7608,2661.5,2661.4,3.01576]
[1727167608277,3.7608,2661.5,2661.3,3.2078]
[1727167608471,3.7608,2661.5,2661.3,3.58356]
[1727167609679,3.7608,2661.5,2661.3,3.58357]
[1727167609874,3.7608,2661.5,2661.3,3.2078]
[1727167610574,3.7608,2661.5,2661.3,3.58357]
[1727167610766,3.7608,2661.5,2661.3,3.2078]
[1727167612579,3.7608,2661.5,2661.3,3.58356]
[1727167612781,3.7608,2661.5,2661.3,3.2078]
[1727167613481,3.7608,2661.5,2661.3,3.58357]
[1727167613681,3.7608,2661.5,2661.3,3.2078]
[1727167614273,3.7608,2661.5,2661.3,3.58357]
[1727167614779,3.7608,2661.5,2661.3,3.2078]
[1727167615281,3.7608,2661.4,2661.3,3.2078]
[1727167618681,4.13656,2661.4,2661.3,3.2078]
[1727167618875,0.37577,2661.3,2660.9,7.46862]
[1727167619075,3.7608,2661.1,2660.9,7.46862]
[1727167619584,3.7608,2661.1,2660.9,3.58362]
[1727167619778,3.7608,2661.1,2661.0,0.37581]
[1727167620185,3.7608,2661.1,2661.0,3.01581]
[1727167620590,3.7608,2661.1,2661.0,2.64]
[1727167620985,3.7608,2661.1,2660.9,3.2078]
[1727167621283,3.7608,2661.0,2660.9,3.2078]
[1727167622496,6.2098,2661.0,2660.9,3.2078]
[1727167622876,6.58561,2661.0,2660.9,3.2078]
[1727167623086,6.58561,2661.0,2660.1,0.93985]
[1727167623087,6.2098,2661.0,2660.6,3.2078]
[1727167623283,0.93961,2660.8,2660.3,3.2078]
[1727167623483,2.82482,2661.0,2660.5,2.64]
[1727167623688,3.7608,2660.7,2660.6,3.58366]
[1727167623893,3.7608,2660.9,2660.8,0.37583]
[1727167624093,3.7608,2660.9,2660.8,3.01583]
[1727167628291,3.7608,2660.9,2660.8,6.22363]
[1727167628696,2.449,2661.0,2660.9,0.37583]
[1727167628891,2.449,2661.5,2661.3,0.37576]
[1727167629088,2.449,2661.5,2661.4,3.58356]
[1727167629294,6.2098,2661.5,2661.4,3.58356]
[1727167629995,6.2098,2661.5,2661.4,3.2078]
[1727167630397,6.2098,2661.5,2661.4,3.58356]
[1727167630901,6.2098,2661.5,2661.4,3.2078]
[1727167631900,6.2098,2661.5,2661.4,3.58356]
[1727167633192,2.449,2661.5,2661.4,3.58356]
[1727167633396,2.449,2661.5,2661.4,18.27084301]
[1727167634300,2.449,2661.5,2661.4,17.33144301]
[1727167635394,6.2098,2661.5,2661.4,4.0533749]
[1727167635601,6.2098,2661.5,2661.4,3.58356]
[1727167635906,2.449,2661.5,2661.4,3.58356]
[1727167636314,2.449,2661.5,2661.4,6.83462653]
[1727167636998,2.449,2661.5,2661.4,5.29713374]
[1727167637194,2.449,2661.8,2661.5,0.37573]
[1727167637404,3.7608,2661.6,2661.5,0.37573]
[1727167637611,3.7608,2661.6,2661.5,3.58353]
[1727167638305,2.449,2661.8,2661.7,0.37571]
[1727167638506,6.2098,2661.8,2661.7,3.01571]
[1727167638813,2.449,2661.8,2661.7,3.48552465]
[1727167640107,2.449,2661.8,2661.7,6.31358086]
[1727167640303,2.449,2661.8,2661.7,5.84376621]
[1727167643108,2.449,2662.0,2661.7,5.46805621]
[1727167643412,2.449,2662.0,2661.9,3.58349]
[1727167643597,2.449,2662.0,2661.9,7.19566737]
[1727167643804,6.2098,2662.0,2661.9,7.19566737]
[1727167646301,5.64605704,2662.0,2661.9,7.19566737]
[1727167646615,1.32125704,2662.0,2661.9,7.19566737]
[1727167646809,9.397,2663.3,2661.9,7.19566737]
[1727167646810,1.7805,2663.8,2662.7,0.93894]
[1727167647111,1.4609,2663.8,2663.7,3.01543]
[1727167647310,0.564,2663.8,2663.7,11.82075805]
[1727167647502,0.564,2663.8,2663.7,19.28787272]
[1727167647704,0.564,2663.8,2663.7,18.34928272]
[1727167647909,0.564,2663.8,2663.7,20.29060935]
[1727167648209,0.564,2663.8,2663.7,6.76983]
[1727167648407,0.564,2663.8,2663.7,3.01543]
[1727167651015,0.564,2663.8,2663.7,2.64]
[1727167651414,0.564,2663.8,2663.7,3.01543]
[1727167651605,0.564,2663.8,2663.7,2.64]
[1727167652115,1.84881,2663.9,2663.7,2.64]
[1727167652417,0.37542,2663.8,2663.6,3.2078]
[1727167652609,0.8327,2663.8,2663.6,3.2078]
[1727167652813,0.8327,2663.8,2663.7,2.64]
[1727167653007,0.8327,2663.8,2663.7,3.01543]
[1727167653315,0.8327,2663.8,2663.7,2.64]
[1727167653816,0.8327,2663.8,2663.7,3.01543]
[1727167654320,0.8327,2663.8,2663.7,2.64]
[1727167654520,1.20812,2663.8,2663.7,2.64]
[1727167654816,0.37543,2663.7,2663.6,3.2078]
[1727167655218,1.20813,2663.8,2663.6,3.2078]
[1727167655811,0.8327,2663.8,2663.7,2.64]
[1727167656007,1.4734,2663.9,2663.8,0.37542]
[1727167657113,0.564,2663.9,2663.8,0.37542]
[1727167657313,0.564,2663.9,2663.8,11.06757]
[1727167657512,0.564,2663.9,2663.8,14.23788423]
[1727167657816,0.564,2663.9,2663.8,4.48428423]
[1727167658008,1.5024,2664.3,2663.7,2.64]
[1727167658205,0.37539,2664.0,2663.9,3.2078]
[1727167658820,1.5024,2664.3,2663.9,6.2232]
[1727167658821,0.564,2664.3,2663.9,6.2232]
[1727167659117,0.37537,2664.2,2664.1,2.64]
[1727167659319,0.37537,2664.2,2664.1,5.8478]
[1727167662017,0.37537,2664.2,2664.1,0.439]
[1727167662222,0.37537,2664.2,2663.8,2.64]
[1727167662223,0.3754,2663.9,2663.8,2.64]
[1727167663524,0.8788,2664.6,2663.8,2.64]
[1727167663525,3.2078,2665.6,2663.9,3.7536]
[1727167663816,0.37524,2665.1,2664.8,2.64]
[1727167664220,0.37525,2665.0,2664.8,2.64]
[1727167664413,3.2078,2665.3,2664.8,2.64]
[1727167664623,0.37526,2664.9,2664.8,2.64]
[1727167665519,0.8577,2665.4,2664.8,6.22307]
[1727167665718,0.37521,2665.3,2665.0,2.64]
[1727167666617,0.93779,2666.0,2665.0,2.64]
[1727167666928,0.37516,2665.7,2665.6,2.64]
[1727167667129,1.744,2665.9,2665.6,2.64]
[1727167667424,0.37514,2665.8,2665.6,2.64]
[1727167667625,0.37515,2665.7,2665.6,2.64]
[1727167668436,0.37515,2665.7,2665.3,3.6152]
[1727167668730,1.744,2665.9,2665.4,3.2078]
[1727167669029,1.744,2665.9,2665.3,3.24]
[1727167669326,1.744,2665.9,2665.1,6.8798]
[1727167669327,0.3752,2665.4,2665.1,3.2078]
[1727167669519,4.14565,2665.8,2665.1,3.2078]
[1727167669825,0.93788,2665.7,2665.1,3.2078]
[1727167670624,0.93792,2665.6,2665.1,3.2078]
[1727167670922,1.744,2665.9,2664.5,7.72111]
[1727167670923,0.37527,2664.9,2664.5,7.72111]
[1727167671127,0.93809,2665.1,2664.5,3.2078]
[1727167671327,0.93809,2665.1,2664.2,3.2078]
[1727167671328,0.9382,2664.8,2664.2,3.2078]
[1727167671626,0.3753,2664.7,2664.3,0.37535]
[1727167671821,0.37531,2664.6,2664.4,3.24]
[1727167672017,0.3753,2664.7,2664.4,3.61533]
[1727167672318,0.37528,2664.8,2664.4,3.24]
[1727167672532,0.9098,2665.0,2664.4,3.24]
[1727167672533,0.9098,2665.0,2664.5,0.37531]
[1727167672916,0.37528,2664.8,2664.5,0.37531]
[1727167673116,0.9098,2665.0,2664.6,0.3753]
[1727167673325,0.9098,2665.0,2664.4,3.24]
[1727167673521,0.37526,2664.9,2664.4,3.61533]
[1727167673725,4.14563,2665.9,2664.7,3.24]
[1727167674023,3.2078,2665.9,2664.7,4.0759]
[1727167674224,3.2078,2665.9,2665.0,3.24]
[1727167674426,3.2078,2665.9,2665.2,0.37521]
[1727167674427,0.37515,2665.8,2665.2,0.37521]
[1727167674621,3.2078,2665.9,2665.1,0.37523]
[1727167674822,3.2078,2665.9,2665.0,3.24]
[1727167675023,0.37516,2665.6,2665.1,0.37523]
[1727167675726,0.37518,2665.5,2665.0,3.61524]
[1727167675930,0.37519,2665.4,2665.0,3.24]
[1727167676223,0.37519,2665.4,2664.9,3.58305]
[1727167676434,4.14572,2665.6,2664.9,0.37525]
[1727167676730,0.37521,2665.3,2664.8,0.37527]
[1727167677324,0.93799,2665.4,2664.7,0.8359]
[1727167677528,0.37523,2665.2,2664.7,1.21118]
[1727167678023,0.37524,2665.1,2664.7,0.8359]
[1727167678423,4.14582,2665.3,2664.6,6.4478]
[1727167678633,0.93806,2665.2,2664.6,6.4478]
[1727167678823,0.37527,2664.9,2664.6,6.4478]
[1727167679028,0.8439,2664.8,2664.6,6.4478]
[1727167679226,0.3753,2664.7,2664.3,3.24]
[1727167679421,0.8439,2664.8,2664.3,3.24]
[1727167679730,0.8439,2664.8,2663.9,1.27209]
[1727167679731,8.74272,2664.8,2663.9,1.27209]
[1727167679924,4.0517,2664.8,2664.3,3.2078]
[1727167680136,0.8439,2664.8,2664.3,3.58314]
[1727167680326,0.8439,2664.8,2664.1,0.37537]
[1727167680327,0.3753,2664.7,2664.1,0.37537]
[1727167680728,0.8439,2664.8,2663.9,4.1045]
[1727167680729,4.0517,2664.8,2664.5,3.24]
[1727167680926,0.8899,2665.1,2664.6,0.3753]
[1727167681125,0.8899,2665.1,2664.6,3.58309]
[1727167681328,0.8899,2665.1,2664.7,0.37529]
[1727167681531,1.211,2665.4,2664.7,0.37529]
[1727167682229,0.8358,2665.4,2664.6,4.9373]
[1727167682424,0.37524,2665.1,2664.6,1.7295]
[1727167682623,0.37524,2665.1,2664.5,3.24]
[1727167682624,0.8358,2665.4,2664.5,3.24]
[1727167682825,0.37523,2665.2,2664.5,3.61531]
[1727167683129,0.8358,2665.4,2665.1,3.2078]
[1727167685237,0.896,2665.7,2665.1,6.4478]
[1727167685739,0.896,2665.7,2665.1,3.2078]
[1727167686036,0.37516,2665.6,2665.1,3.2078]
[1727167686233,3.2078,2665.8,2665.1,3.2078]
[1727167686432,1.20732,2665.9,2665.1,3.2078]
[1727167686733,1.6683,2665.9,2665.1,3.58303]
[1727167687239,1.6683,2665.9,2665.4,3.2078]
[1727167687629,1.6683,2665.9,2665.4,3.58299]
[1727167687831,3.2078,2666.4,2665.4,6.4478]
[1727167688028,3.2078,2666.4,2664.9,3.808]
[1727167688029,3.2078,2666.4,2665.8,3.2078]
[1727167688228,2.04332,2666.7,2665.8,3.2078]
[1727167688433,0.37503,2666.6,2665.8,3.58293]
[1727167688633,0.37504,2666.5,2665.8,3.2078]
[1727167688832,1.6683,2666.7,2665.8,3.2078]
[1727167688833,0.37506,2666.4,2665.8,3.2078]
[1727167689229,0.37507,2666.3,2665.7,3.24]
[1727167689537,0.37507,2666.3,2665.5,2.10957]
[1727167689538,0.37507,2666.3,2665.5,1.7344]
[1727167689836,3.2078,2666.5,2665.5,1.7344]
[1727167690034,0.37512,2666.0,2665.5,1.7344]
[1727167690226,0.37514,2665.8,2665.4,3.2078]
[1727167690427,0.37515,2665.7,2665.4,3.2078]
[1727167690634,0.37517,2665.6,2665.4,3.2078]
[1727167691040,0.37519,2665.4,2665.1,3.2078]
[1727167691434,0.8662,2665.3,2665.1,3.2078]
[1727167693445,1.24142,2665.3,2665.1,3.2078]
[1727167693736,0.8662,2665.3,2664.9,0.8525]
[1727167694139,1.24141,2665.3,2664.9,0.8525]
[1727167694345,0.8662,2665.3,2664.9,0.8525]
[1727167694844,1.24141,2665.3,2664.9,0.8525]
[1727167695145,3.58302,2665.2,2664.5,1.0061]
[1727167695346,0.37523,2665.1,2664.5,1.29341]
[1727167695645,4.0669,2665.2,2664.5,0.9181]
[1727167695944,0.37524,2665.1,2664.5,0.9181]
[1727167696846,0.37525,2665.0,2664.5,0.9181]
[1727167697043,0.37524,2665.1,2664.5,1.29341]
[1727167697233,4.44213,2665.2,2664.6,3.2078]
[1727167697439,4.44213,2665.2,2664.6,3.5831]
[1727167697734,0.37527,2664.9,2664.6,3.2078]
[1727167698050,4.0669,2665.2,2664.6,3.2078]
[1727167698051,0.37528,2664.8,2664.6,3.2078]
[1727167698239,4.0669,2665.2,2664.6,3.2078]
[1727167698431,0.37524,2665.1,2664.6,3.5831]
[1727167698633,4.0669,2665.2,2664.6,3.5831]
[1727167698842,0.37524,2665.1,2664.6,3.5831]
[1727167699048,4.44212,2665.2,2664.6,3.2078]
[1727167699239,4.0669,2665.2,2664.6,3.2078]
[1727167699436,1.23433,2665.2,2664.7,3.24]
[1727167700242,0.37525,2665.1,2664.7,3.24]
[1727167700855,0.37525,2665.0,2664.7,3.24]
[1727167701039,0.37525,2665.0,2664.6,3.2078]
[1727167701040,0.37527,2664.9,2664.6,3.2078]
[1727167701235,0.8591,2665.2,2664.6,3.2078]
[1727167701442,0.37526,2664.9,2664.6,3.2078]
[1727167701857,0.37527,2664.9,2664.6,3.2078]
[1727167702241,0.93809,2665.1,2664.4,4.072]